bitfinex-derivatives/quotes_ETHF0:USTF0_20210402
["timestamp","ask_amount","ask_price","bid_price","bid_amount"]
[1617347656266,41.2232,1998.1,1998.0,84.67475]
[1617347656667,40.2222,1998.1,1998.0,84.67475]
[1617347656866,37.2011,1998.1,1998.0,84.67475]
[1617347657066,36.2035,1998.1,1998.0,84.67475]
[1617347657566,35.9256,1998.1,1998.0,84.67475]
[1617347657765,33.5664,1998.1,1998.0,86.67475]
[1617347657965,30.5996,1998.1,1998.0,86.67475]
[1617347658167,30.0538,1998.1,1998.0,86.67475]
[1617347658967,29.9383,1998.1,1998.0,86.67475]
[1617347659169,23.9617,1998.1,1998.0,86.67475]
[1617347659369,22.919,1998.1,1998.0,86.67475]
[1617347659571,20.8084,1998.1,1998.0,86.67475]
[1617347659770,20.1571,1998.1,1998.0,4.90695]
[1617347659971,77.1225,1998.1,1998.0,4.90695]
[1617347660573,20.1571,1998.1,1998.0,4.90695]
[1617347660773,20.1571,1998.1,1998.0,2.90695]
[1617347661570,50.1571,1998.1,1998.0,2.90695]
[1617347662772,131.8411,1998.1,1998.0,2.90695]
[1617347663273,50.1571,1998.1,1998.0,2.90695]
[1617347666074,20.1571,1998.1,1998.0,2.90695]
[1617347675291,20.1571,1998.1,1998.0,3.90275]
[1617347676397,20.0069,1998.1,1998.0,3.90275]
[1617347677294,19.0057,1998.1,1998.0,3.90275]
[1617347679599,18.6563,1998.1,1998.0,3.90275]
[1617347679800,18.6563,1998.1,1998.0,2.90695]
[1617347679998,17.9213,1998.1,1998.0,2.90695]
[1617347681703,79.4496,1998.1,1998.0,2.90695]
[1617347684600,17.9213,1998.1,1998.0,2.90695]
[1617347685100,17.9213,1998.1,1998.0,3.91645]
[1617347685901,17.4154,1998.1,1998.0,3.91645]
[1617347686100,17.1165,1998.1,1998.0,3.91645]
[1617347687507,15.6907,1998.1,1998.0,3.91645]
[1617347687906,15.4809,1998.1,1998.0,3.91645]
[1617347688108,15.2099,1998.1,1998.0,3.91645]
[1617347688609,12.4048,1998.1,1998.0,3.91645]
[1617347688808,11.1043,1998.1,1998.0,3.91645]
[1617347689510,9.327,1998.1,1998.0,3.91645]
[1617347689709,9.327,1998.1,1998.0,2.90695]
[1617347689910,7.8335,1998.1,1998.0,2.90695]
[1617347702727,7.8335,1998.1,1998.0,4.90695]
[1617347707733,7.8335,1998.1,1998.0,5.34832911]
[1617347709136,2.5709,1998.1,1998.0,5.34832911]
[1617347709535,13.8397,1998.4,1998.0,5.34832911]
[1617347710437,13.8397,1998.4,1998.1,0.44137084]
[1617347710635,13.8397,1998.4,1998.3,2.90695]
[1617347710835,13.8397,1998.4,1998.3,4.90695]
[1617347711035,14.1718,1998.5,1998.4,67.0809]
[1617347711235,14.1718,1998.5,1998.4,69.0809]
[1617347714640,14.1718,1998.5,1998.4,2.0]
[1617347716042,14.1718,1998.5,1998.4,32.0]
[1617347716242,13.1735,1998.5,1998.4,32.0]
[1617347719345,12.1752,1998.5,1998.4,32.0]
[1617347723249,11.3915,1998.5,1998.4,32.0]
[1617347726355,10.3932,1998.5,1998.4,32.0]
[1617347727357,10.3932,1998.5,1998.4,33.1]
[1617347733165,9.3949,1998.5,1998.4,33.1]
[1617347735265,9.3949,1998.5,1998.4,31.1]
[1617347735867,9.3949,1998.5,1998.4,102.0437]
[1617347736270,9.3949,1998.5,1998.4,31.1]
[1617347737470,9.3949,1998.5,1998.4,30.0]
[1617347738269,9.3949,1998.5,1998.4,31.1]
[1617347738470,9.3949,1998.5,1998.4,1.1]
[1617347739271,9.3949,1998.5,1998.3,2.90695]
[1617347740172,8.3966,1998.5,1998.3,2.90695]
[1617347747385,7.3983,1998.5,1998.3,2.90695]
[1617347749788,7.3983,1998.5,1998.3,4.29165]
[1617347749988,7.3983,1998.5,1998.4,58.0234]
[1617347754296,6.4,1998.5,1998.4,58.0234]
[1617347761300,5.4017,1998.5,1998.4,58.0234]
[1617347762801,7.3546,1998.5,1998.3,2.90695]
[1617347763003,66.146,1998.5,1998.3,2.90695]
[1617347763604,66.146,1998.5,1998.3,3.91195]
[1617347766802,65.5209,1998.5,1998.3,3.91195]
[1617347767005,65.2427,1998.5,1998.3,3.91195]
[1617347767804,62.6822,1998.5,1998.3,3.91195]
[1617347768005,62.1825,1998.5,1998.3,3.91195]
[1617347768205,3.3911,1998.5,1998.3,3.91195]
[1617347768405,0.4399,1998.5,1998.3,3.91195]
[1617347769704,13.7538,1998.7,1998.3,3.91195]
[1617347769905,0.50466557,1998.7,1998.3,2.90695]
[1617347770506,0.50466557,1998.7,1998.4,0.02]
[1617347771305,0.50466557,1998.7,1998.6,2.90695]
[1617347771506,0.48466557,1998.7,1998.6,2.90695]
[1617347772509,0.46466557,1998.7,1998.6,2.90695]
[1617347775415,0.24956557,1998.7,1998.6,2.90695]
[1617347781721,0.22956557,1998.7,1998.6,2.90695]
[1617347782621,28.4371,1999.3,1998.7,64.0436]
[1617347783021,28.4171,1999.3,1998.7,64.0436]
[1617347783322,28.3971,1999.3,1998.7,64.0436]
[1617347783521,28.3971,1999.3,1999.2,2.90695]
[1617347783723,28.3771,1999.3,1999.2,2.90695]
[1617347784322,28.3571,1999.3,1999.2,2.90695]
[1617347785422,27.3386,1999.3,1999.2,2.90695]
[1617347788328,27.3386,1999.3,1999.2,4.12255]
[1617347790529,27.3386,1999.3,1999.2,2.90695]
[1617347792330,26.3401,1999.3,1999.2,2.90695]
[1617347798943,26.3401,1999.3,1999.2,84.30675]
[1617347799342,25.3416,1999.3,1999.2,84.30675]
[1617347799843,25.3216,1999.3,1999.2,84.30675]
[1617347806351,24.3231,1999.3,1999.2,84.30675]
[1617347809755,24.3231,1999.3,1999.2,2.90695]
[1617347810155,94.5993,1999.3,1999.2,2.90695]
[1617347810555,96.5993,1999.3,1999.2,2.90695]
[1617347811357,24.3231,1999.3,1999.2,2.90695]
[1617347812156,26.3231,1999.3,1999.2,2.90695]
[1617347813457,25.3246,1999.3,1999.2,2.90695]
[1617347815760,23.3246,1999.3,1999.2,2.90695]
[1617347816360,23.3246,1999.3,1999.2,2.92695]
[1617347816761,23.3146,1999.3,1999.2,2.92695]
[1617347817364,23.3146,1999.3,1999.2,4.29745]
[1617347818364,23.3146,1999.3,1999.2,4.27745]
[1617347818564,23.3146,1999.3,1999.2,2.92695]
[1617347820363,22.3161,1999.3,1999.2,2.92695]
[1617347822371,22.3161,1999.3,1999.2,2.90695]
[1617347822572,22.3161,1999.3,1999.2,2.92695]
[1617347824274,22.3161,1999.3,1999.2,2.90695]
[1617347824675,22.3161,1999.3,1999.2,2.92695]
[1617347826875,24.3161,1999.3,1999.2,2.92695]
[1617347827474,23.3176,1999.3,1999.2,2.92695]
[1617347834483,22.3191,1999.3,1999.2,2.92695]
[1617347841393,21.3206,1999.3,1999.2,2.92695]
[1617347842792,22.9486,1999.3,1999.2,2.92695]
[1617347843193,20.9486,1999.3,1999.2,2.92695]
[1617347848499,19.9501,1999.3,1999.2,2.92695]
[1617347850201,18.3221,1999.3,1999.2,2.92695]
[1617347850400,20.2717,1999.3,1999.2,2.92695]
[1617347854803,18.3221,1999.3,1999.2,2.92695]
[1617347862117,18.3221,1999.3,1999.2,4.58555]
[1617347862718,14.7486,1999.3,1999.2,4.58555]
[1617347863537,13.7503,1999.3,1999.2,4.58555]
[1617347863726,13.7503,1999.3,1999.2,4.56555]
[1617347864727,13.7403,1999.3,1999.2,4.56555]
[1617347870533,12.742,1999.3,1999.2,4.56555]
[1617347873337,12.742,1999.3,1999.2,6.56555]
[1617347875740,12.742,1999.3,1999.2,36.56555]
[1617347877441,11.7437,1999.3,1999.2,36.56555]
[1617347884547,10.7454,1999.3,1999.2,36.56555]
[1617347889451,10.7254,1999.3,1999.2,36.56555]
[1617347891450,9.7271,1999.3,1999.2,36.56555]
[1617347898462,8.7288,1999.3,1999.2,36.56555]
[1617347900364,8.7088,1999.3,1999.2,36.56555]
[1617347902166,8.6888,1999.3,1999.2,36.56555]
[1617347905570,7.6905,1999.3,1999.2,36.56555]
[1617347912579,6.6922,1999.3,1999.2,37.00677066]
[1617347916186,6.6922,1999.3,1999.2,36.56555]
[1617347918486,6.6922,1999.3,1999.2,37.00677641]
[1617347919489,5.6939,1999.3,1999.2,36.56555]
[1617347919687,5.6939,1999.3,1999.2,37.00677556]
[1617347920687,5.6939,1999.3,1999.2,36.56555]
[1617347922688,5.6939,1999.3,1999.2,35.00677957]
[1617347922888,5.6939,1999.3,1999.2,34.56555]
[1617347923089,5.6939,1999.3,1999.2,108.62355]
[1617347924389,5.6939,1999.3,1999.2,78.62355]
[1617347924591,5.6939,1999.3,1999.2,78.64355]
[1617347924988,5.6939,1999.3,1999.2,78.62355]
[1617347926591,4.6956,1999.3,1999.2,78.62355]
[1617347937501,4.6956,1999.3,1999.2,4.56555]
[1617347937700,4.6956,1999.3,1999.2,2.90695]
[1617347939602,4.6956,1999.3,1999.2,70.33825]
[1617347940402,4.6956,1999.3,1999.2,70.35825]
[1617347942003,4.6956,1999.3,1999.2,70.33825]
[1617347946313,4.6956,1999.3,1999.2,70.35825]
[1617347949915,4.6956,1999.3,1999.2,70.33825]
[1617347950616,4.6956,1999.3,1999.2,70.35825]
[1617347963432,4.6956,1999.3,1999.2,2.92695]
[1617347963630,4.6956,1999.3,1999.2,4.13495]
[1617347965238,4.6956,1999.3,1999.2,2.92695]
[1617347965539,3.6978,1999.3,1999.2,2.92695]
[1617347972545,2.7,1999.3,1999.2,2.92695]
[1617347979650,1.7022,1999.3,1999.2,2.92695]
[1617347979850,1.7022,1999.3,1999.2,4.65815]
[1617347980978,12.0,1999.6,1999.3,61.1937]
[1617347981168,12.0,1999.6,1999.5,2.90695]
[1617347982572,11.98,1999.6,1999.5,2.90695]
[1617347985360,11.98,1999.6,1999.5,2.92695]
[1617347985761,11.98,1999.6,1999.5,2.90695]
[1617347986562,10.9822,1999.6,1999.5,2.90695]
[1617347986761,10.9822,1999.6,1999.5,3.34817926]
[1617347991169,10.9822,1999.6,1999.5,2.90695]
[1617347992167,10.9622,1999.6,1999.5,2.90695]
[1617347992968,10.9622,1999.6,1999.5,4.00695]
[1617347993570,9.9644,1999.6,1999.5,4.00695]
[1617347998174,11.3669,1999.6,1999.5,2.90695]
[1617347999777,9.9644,1999.6,1999.5,2.90695]
[1617348000579,8.9666,1999.6,1999.5,2.90695]
[1617348000779,8.9666,1999.6,1999.5,4.19765]
[1617348003380,8.9666,1999.6,1999.5,5.29765]
[1617348007685,7.9688,1999.6,1999.5,5.29765]
[1617348009586,7.9688,1999.6,1999.5,4.19765]
[1617348011088,7.9688,1999.6,1999.5,4.63879966]
[1617348011488,7.9688,1999.6,1999.5,5.73879966]
[1617348013490,7.9688,1999.6,1999.5,5.29765]
[1617348013791,7.9688,1999.6,1999.5,4.19765]
[1617348014596,6.971,1999.6,1999.5,4.19765]
[1617348014995,6.971,1999.6,1999.5,5.29765]
[1617348016398,6.971,1999.6,1999.5,5.73881102]
[1617348016999,6.971,1999.6,1999.5,5.29765]
[1617348018901,6.971,1999.6,1999.5,5.31765]
[1617348019201,6.971,1999.6,1999.5,5.75881265]
[1617348020000,6.971,1999.6,1999.5,5.31765]
[1617348021602,5.9732,1999.6,1999.5,5.31765]
[1617348024105,5.9732,1999.6,1999.5,5.75882464]
[1617348024905,5.9732,1999.6,1999.5,5.73882464]
[1617348025106,5.9732,1999.6,1999.5,4.00695]
[1617348025706,5.9732,1999.6,1999.5,4.02695]
[1617348026405,5.9732,1999.6,1999.5,5.65795]
[1617348028006,5.9732,1999.6,1999.5,6.09912568]
[1617348028609,4.9754,1999.6,1999.5,6.09912568]
[1617348029209,4.9754,1999.6,1999.5,6.07912568]
[1617348030010,4.9754,1999.6,1999.5,6.09912568]
[1617348030912,4.9754,1999.6,1999.5,6.07912568]
[1617348031919,4.9754,1999.6,1999.5,6.09912568]
[1617348034021,4.9754,1999.6,1999.5,6.07912568]
[1617348039125,4.9754,1999.6,1999.5,8.07912568]
[1617348040826,4.9754,1999.6,1999.5,8.09912568]
[1617348041228,4.9754,1999.6,1999.5,8.07912568]
[1617348044433,4.9754,1999.6,1999.5,8.09912568]
[1617348048135,4.9754,1999.6,1999.5,6.09912568]
[1617348048336,4.9754,1999.6,1999.5,4.46812568]
[1617348048736,4.9754,1999.6,1999.5,4.44812568]
[1617348050137,4.9754,1999.6,1999.5,5.87072568]
[1617348051939,4.9754,1999.6,1999.5,35.87072568]
[1617348052938,4.9754,1999.6,1999.5,35.89072568]
[1617348055843,4.9754,1999.6,1999.5,35.87072568]
[1617348056841,4.9754,1999.6,1999.5,35.89072568]
[1617348058742,3.9779,1999.6,1999.5,35.89072568]
[1617348059444,3.9779,1999.6,1999.5,37.89072568]
[1617348060043,3.9779,1999.6,1999.5,37.87072568]
[1617348060544,3.9579,1999.6,1999.5,37.87072568]
[1617348060745,3.9579,1999.6,1999.5,41.90608532]
[1617348060945,3.9579,1999.6,1999.5,41.92608532]
[1617348061144,3.9579,1999.6,1999.5,37.89072568]
[1617348062145,3.9579,1999.6,1999.5,43.0788724]
[1617348062846,3.9579,1999.6,1999.5,43.0588724]
[1617348063746,3.9379,1999.6,1999.5,43.0588724]
[1617348065647,43.42737654,2000.0,1999.6,64.7633]
[1617348065848,43.42737654,2000.0,1999.7,33.1]
[1617348066051,43.42737654,2000.0,1999.8,0.4409926]
[1617348066250,43.42737654,2000.0,1999.9,1.1]
[1617348066453,43.42737654,2000.0,1999.9,2.3422]
[1617348066652,43.42737654,2000.0,1999.9,34.78319417]
[1617348067652,43.42737654,2000.0,1999.9,37.69014417]
[1617348068455,22.40297654,2000.0,1999.9,37.69014417]
[1617348068657,2.0,2000.7,1999.9,37.69014417]
[1617348069055,2.0,2000.7,2000.0,0.44095852]
[1617348069258,2.0,2000.7,2000.1,1.1]
[1617348069656,2.0,2000.7,2000.6,2.90695]
[1617348069856,2.0,2000.7,2000.6,36.60545]
[1617348070256,2.0,2000.7,2000.6,37.04636275]
[1617348070456,2.0,2000.7,2000.6,38.14636275]
[1617348072659,1.0025,2000.7,2000.6,38.14636275]
[1617348073060,13.7828,2002.2,2000.7,80.0661]
[1617348073261,13.7828,2002.2,2000.8,33.1]
[1617348073661,13.7828,2002.2,2002.1,2.90695]
[1617348073862,13.7828,2002.2,2002.1,34.84205]
[1617348074261,13.7828,2002.2,2002.1,35.94205]
[1617348074461,13.7828,2002.2,2002.1,37.94205]
[1617348076564,14.8519,2003.1,2002.1,37.94205]
[1617348076964,1.069,2003.1,2002.1,37.94205]
[1617348077563,9.553e-05,2003.3,2002.1,37.94205]
[1617348077764,9.553e-05,2003.3,2003.2,2.90695]
[1617348077964,9.553e-05,2003.3,2003.2,32.90695]
[1617348078364,2.0,2004.8,2003.2,32.90695]
[1617348078564,0.01458664,2004.5,2004.2,56.5056]
[1617348078765,0.01458527,2004.6,2004.2,56.5056]
[1617348079165,0.02917055,2004.7,2004.2,56.5056]
[1617348079166,0.01458536,2004.7,2004.2,56.5056]
[1617348079766,1.04625608,2004.8,2004.6,2.90695]
[1617348079967,1.01708536,2004.8,2004.6,2.90695]
[1617348080669,0.02916962,2004.9,2004.6,4.36835]
[1617348081070,0.0291678,2005.1,2004.9,68.014]
[1617348081770,0.0291678,2005.1,2005.0,2.90695]
[1617348082174,0.02915718,2005.2,2005.0,2.90695]
[1617348083575,2.0,2005.5,2005.0,2.90695]
[1617348083776,2.0,2005.5,2005.4,2.90695]
[1617348086781,12.9024,2005.6,2005.4,2.90695]
[1617348087182,14.8432,2005.5,2005.4,2.90695]
[1617348087981,29.6303,2005.5,2005.4,2.90695]
[1617348092987,31.6303,2005.5,2005.4,2.90695]
[1617348093187,33.4115,2005.5,2005.4,2.90695]
[1617348093786,32.414,2005.5,2005.4,2.90695]
[1617348094786,62.414,2005.5,2005.4,2.90695]
[1617348095586,62.414,2005.5,2005.4,5e-05]
[1617348096690,126.8349,2005.5,2005.4,5e-05]
[1617348100592,62.414,2005.5,2005.4,5e-05]
[1617348100794,61.4165,2005.5,2005.4,5e-05]
[1617348101601,119.4602,2005.5,2005.4,5e-05]
[1617348101797,61.4165,2005.5,2005.4,5e-05]
[1617348102197,31.4165,2005.5,2005.4,5e-05]
[1617348102397,29.6353,2005.5,2005.4,5e-05]
[1617348102596,27.6353,2005.5,2005.4,5e-05]
[1617348102995,29.6353,2005.5,2005.4,5e-05]
[1617348103597,27.6353,2005.5,2005.4,5e-05]
[1617348103997,29.6353,2005.5,2005.4,5e-05]
[1617348107699,28.6378,2005.5,2005.4,5e-05]
[1617348114707,57.6403,2005.5,2005.4,5e-05]
[1617348116908,27.6403,2005.5,2005.4,5e-05]
[1617348118509,27.6403,2005.5,2005.4,1.62185]
[1617348119810,27.6403,2005.5,2005.4,5e-05]
[1617348121219,57.6403,2005.5,2005.4,5e-05]
[1617348121910,56.6428,2005.5,2005.4,5e-05]
[1617348122112,24.8498,2005.5,2005.4,5e-05]
[1617348122312,20.6089,2005.5,2005.4,5e-05]
[1617348122516,16.9659,2005.5,2005.4,5e-05]
[1617348122715,15.7031,2005.5,2005.4,5e-05]
[1617348124315,17.7031,2005.5,2005.4,5e-05]
[1617348124914,15.7031,2005.5,2005.4,5e-05]
[1617348125115,15.7031,2005.5,2005.4,76.27025]
[1617348129420,13.1338,2005.5,2005.4,76.27025]
[1617348129621,8.0,2005.7,2005.4,5e-05]
[1617348130625,2.0,2006.1,2005.7,78.0439]
[1617348130821,1.0049,2006.1,2005.7,78.0439]
[1617348131022,1.0049,2006.1,2005.4,5e-05]
[1617348131823,8.0,2005.9,2005.4,5e-05]
[1617348132022,8.0,2005.9,2005.8,2.90695]
[1617348134226,8.0,2005.9,2005.8,60.96495]
[1617348136330,9.0049,2005.9,2005.8,60.96495]
[1617348137932,8.0098,2005.9,2005.8,60.96495]
[1617348138133,8.0098,2005.9,2005.8,2.90695]
[1617348144842,7.0147,2005.9,2005.8,2.90695]
[1617348151860,6.0196,2005.9,2005.8,2.90695]
[1617348152460,1.0049,2005.9,2005.8,2.90695]
[1617348152661,1.0049,2006.0,2005.8,2.90695]
[1617348153062,5.0147,2005.9,2005.8,2.90695]
[1617348153464,37.2502,2005.9,2005.8,2.90695]
[1617348157869,7.2502,2005.9,2005.8,2.90695]
[1617348158067,6.0196,2005.9,2005.8,2.90695]
[1617348158870,35.0245,2005.9,2005.8,2.90695]
[1617348161372,5.0245,2005.9,2005.8,2.90695]
[1617348162071,5.17053192,2005.9,2005.8,2.90695]
[1617348162471,5.3165726,2005.9,2005.8,2.90695]
[1617348162671,4.3116726,2005.9,2005.8,2.90695]
[1617348163072,4.16562646,2005.9,2005.8,2.90695]
[1617348163473,4.0196,2005.9,2005.8,2.90695]
[1617348164476,4.04880191,2005.9,2005.8,2.90695]
[1617348164675,4.0196,2005.9,2005.8,2.90695]
[1617348165877,3.0245,2005.9,2005.8,2.90695]
[1617348171982,3.0245,2005.9,2005.8,79.38875]
[1617348172881,2.0294,2005.9,2005.8,79.38875]
[1617348174386,14.0003,2006.1,2005.8,79.38875]
[1617348174787,16.0294,2005.9,2005.8,79.38875]
[1617348179894,15.0343,2005.9,2005.8,79.38875]
[1617348187001,14.0392,2005.9,2005.8,79.38875]
[1617348189104,14.0392,2005.9,2005.8,2.90695]
[1617348192809,13.0392,2005.9,2005.8,2.90695]
[1617348194008,12.0441,2005.9,2005.8,2.90695]
[1617348196913,12.0441,2005.9,2005.8,68.27615]
[1617348209924,12.0441,2005.9,2005.8,70.27615]
[1617348211827,13.7138,2005.9,2005.8,70.27615]
[1617348212327,13.7138,2005.9,2005.8,68.27615]
[1617348212528,13.7138,2005.9,2005.8,2.90695]
[1617348213030,43.7138,2005.9,2005.8,2.90695]
[1617348213632,44.00620784,2005.9,2005.8,2.90695]
[1617348214030,44.18164412,2005.9,2005.8,2.90695]
[1617348214731,43.7138,2005.9,2005.8,2.90695]
[1617348215132,44.41565012,2005.9,2005.8,2.90695]
[1617348215333,44.41565012,2005.9,2004.3,2.0]
[1617348215533,43.7138,2005.9,2004.2,70.9928]
[1617348215733,43.7138,2005.9,2003.4,3.1]
[1617348215935,0.02923667,2005.2,2003.5,72.1646]
[1617348216135,0.02923777,2005.1,2003.5,72.1646]
[1617348216533,2.0,2005.0,2003.5,74.1646]
[1617348216735,2.0,2005.0,2004.9,2.90695]
[1617348218739,32.0,2005.0,2004.9,2.90695]
[1617348220040,32.02923424,2005.0,2004.9,2.90695]
[1617348222039,32.0,2005.0,2004.9,2.90695]
[1617348225041,30.0,2005.0,2004.9,0.90695]
[1617348225441,30.14619241,2005.0,2004.9,0.90695]
[1617348226040,30.0,2005.0,2004.9,0.90695]
[1617348226241,44.0683,2005.0,2004.9,0.90695]
[1617348226440,58.7924,2005.0,2004.9,0.90695]
[1617348226842,58.9385946,2005.0,2004.9,0.90695]
[1617348227044,58.7924,2005.0,2004.9,0.90695]
[1617348228742,61.69935,2005.0,2004.9,0.90695]
[1617348230146,61.72853395,2005.0,2004.9,0.90695]
[1617348230548,61.69935,2005.0,2004.9,0.90695]
[1617348232850,61.72853337,2005.0,2004.9,0.90695]
[1617348233050,61.72853337,2005.0,2003.4,2.0]
[1617348233051,63.72853337,2005.0,2002.7,1.1]
[1617348233251,66.0459,2004.8,2003.0,66.0459]
[1617348233451,32.0,2004.7,2003.0,66.0459]
[1617348234254,32.02918862,2004.7,2003.0,66.0459]
[1617348234853,32.02918862,2004.7,2004.6,2.90695]
[1617348235055,32.0,2004.7,2004.6,2.90695]
[1617348235255,30.0,2004.7,2004.6,2.90695]
[1617348235458,32.0,2004.7,2004.6,2.90695]
[1617348236456,32.0,2004.7,2003.0,66.0459]
[1617348236657,32.0,2004.7,2002.6,2.0]
[1617348236859,75.9012,2004.1,2002.6,2.0]
[1617348237056,30.0,2004.0,2002.6,2.0]
[1617348237257,13.8765,2003.9,2002.6,2.0]
[1617348237456,30.0,2003.8,2002.6,2.0]
[1617348237657,44.1357,2003.8,2002.6,2.0]
[1617348238958,44.1357,2003.8,2003.7,2.90695]
[1617348240760,44.1357,2003.8,2001.7,1.1]
[1617348240962,71.4368,2003.7,2001.7,72.5368]
[1617348241162,30.0,2003.6,2001.7,72.5368]
[1617348242261,32.0,2003.6,2001.7,72.5368]
[1617348243061,32.0,2003.6,2003.4,2.90695]
[1617348244263,32.0,2003.6,2001.7,72.5368]
[1617348244965,32.0,2003.6,2003.3,2.90695]
[1617348246967,2.90695,2003.4,2003.3,2.90695]
[1617348247165,32.90695,2003.4,2003.3,2.90695]
[1617348266184,32.56885,2003.4,2003.3,2.90695]
[1617348269187,31.57425,2003.4,2003.3,2.90695]
[1617348269387,1.57425,2003.4,2003.3,2.90695]
[1617348269587,31.57425,2003.4,2003.3,2.90695]
[1617348272491,1.57425,2003.4,2003.3,2.90695]
[1617348275094,30.0,2003.7,2003.3,2.90695]
[1617348275495,32.90695,2003.7,2003.6,2.90695]
[1617348276495,32.90695,2003.7,2002.1,62.3273]
[1617348276694,62.3273,2002.9,2002.1,64.3273]
[1617348277294,14.7182,2002.8,2002.1,64.3273]
[1617348277494,14.7182,2002.8,2002.7,2.90695]
[1617348280497,44.7182,2002.8,2002.7,2.90695]
[1617348282201,43.7236,2002.8,2002.7,2.90695]
[1617348282403,42.7236,2002.8,2002.7,2.90695]
[1617348289109,41.729,2002.8,2002.7,2.90695]
[1617348296223,40.7344,2002.8,2002.7,2.90695]
[1617348303133,39.7398,2002.8,2002.7,2.90695]
[1617348310236,38.7452,2002.8,2002.7,2.90695]
[1617348313742,38.7452,2002.8,2002.7,4.64545]
[1617348317147,37.7506,2002.8,2002.7,4.64545]
[1617348317347,37.7506,2002.8,2002.7,2.90695]
[1617348318748,106.566,2002.8,2002.7,2.90695]
[1617348324156,105.5714,2002.8,2002.7,2.90695]
[1617348327157,6.756,2002.8,2002.7,2.90695]
[1617348328963,6.756,2002.8,2002.7,4.90695]
[1617348330068,0.0001,2002.8,2002.7,4.90695]
[1617348330267,14.1197,2003.2,2003.1,81.2133]
[1617348330466,14.1197,2003.2,2003.1,84.4986]
[1617348330867,8.3149,2003.2,2003.1,87.40555]
[1617348331268,7.6578,2003.2,2003.1,87.40555]
[1617348332369,3.5896,2003.2,2003.1,87.40555]
[1617348332571,56.3465,2003.4,2003.1,87.40555]
[1617348333871,30.0,2004.5,2003.1,6.19225]
[1617348334070,60.2242,2003.5,2003.1,4.90695]
[1617348334870,60.2242,2003.5,2003.4,2.90695]
[1617348335074,60.2242,2003.5,2003.4,4.90695]
[1617348335773,30.0292455,2004.5,2003.4,4.90695]
[1617348336174,58.8471,2004.4,2003.6,58.8471]
[1617348336373,30.0,2004.3,2003.6,58.8471]
[1617348336773,30.0,2004.3,2004.2,2.90695]
[1617348339277,30.0,2004.3,2004.2,61.29355]
[1617348339478,30.02924571,2004.5,2004.2,61.29355]
[1617348340479,14.2481,2004.4,2004.2,61.29355]
[1617348340681,28.6165,2004.4,2004.2,61.29355]
[1617348341982,30.0,2004.3,2004.2,61.29355]
[1617348342383,30.0,2004.3,2004.2,2.90695]
[1617348342986,32.90695,2004.3,2004.2,2.90695]
[1617348348588,30.0,2004.3,2004.2,2.90695]
[1617348348788,30.0,2004.3,2004.2,4.47865]
[1617348350289,42.0955,2004.4,2004.2,4.47865]
[1617348350688,42.0955,2004.4,2004.3,2.0]
[1617348353299,42.0955,2004.4,2004.3,79.0733]
[1617348353999,42.0955,2004.4,2004.3,2.0]
[1617348357302,41.0997,2004.4,2004.3,2.0]
[1617348363409,41.0997,2004.4,2004.3,75.6552]
[1617348363609,41.0997,2004.4,2004.2,2.90695]
[1617348363816,71.0997,2004.4,2004.2,2.90695]
[1617348364209,70.1039,2004.4,2004.2,2.90695]
[1617348371113,2.90695,2004.3,2004.2,2.90695]
[1617348371314,31.91115,2004.3,2004.2,2.90695]
[1617348372415,31.91115,2004.3,2004.2,5e-05]
[1617348372614,31.91115,2004.3,2003.2,65.2481]
[1617348372816,58.1426,2003.4,2003.2,65.2481]
[1617348373016,89.5578,2003.4,2003.3,2.90695]
[1617348374019,31.4152,2003.4,2003.3,2.90695]
[1617348374218,30.0,2003.4,2003.3,2.90695]
[1617348375318,82.1057,2003.7,2003.3,2.90695]
[1617348375518,14.0958,2003.6,2003.3,2.90695]
[1617348375918,44.0958,2003.6,2003.3,2.90695]
[1617348376519,45.9737,2003.6,2003.3,2.90695]
[1617348377221,44.0958,2003.6,2003.3,2.90695]
[1617348377421,14.0958,2003.6,2003.3,2.90695]
[1617348378022,14.0958,2003.6,2003.5,76.6924]
[1617348378222,13.1,2003.6,2003.5,78.0384]
[1617348379725,13.1,2003.6,2003.5,1.346]
[1617348379924,13.1,2003.6,2003.3,2.90695]
[1617348382529,13.1,2003.6,2003.3,4.90695]
[1617348383328,13.5996,2003.5,2003.3,4.90695]
[1617348384533,13.5996,2003.5,2003.4,63.4701]
[1617348384731,13.5996,2003.5,2003.4,66.9328]
[1617348385331,12.6038,2003.5,2003.4,66.9328]
[1617348387834,12.6038,2003.5,2003.4,65.4701]
[1617348389133,12.6038,2003.5,2003.4,67.3442]
[1617348392238,11.608,2003.5,2003.4,67.3442]
[1617348399345,10.6122,2003.5,2003.4,67.3442]
[1617348404452,10.6122,2003.5,2003.4,65.4701]
[1617348406353,9.6164,2003.5,2003.4,65.4701]
[1617348413263,8.6206,2003.5,2003.4,65.4701]
[1617348419167,8.6206,2003.5,2003.4,2.0]
[1617348419369,12.2565,2004.4,2003.4,33.5079]
[1617348419568,12.2565,2004.4,2003.5,56.0437]
[1617348419768,12.2565,2004.4,2003.6,32.0]
[1617348419971,0.01462561,2005.0,2003.6,32.0]
[1617348420569,0.01462485,2005.1,2003.6,32.0]
[1617348421169,0.01462389,2005.2,2003.6,32.0]
[1617348421369,0.01462389,2005.2,2005.1,2.90695]
[1617348422370,55.16236723,2005.4,2005.1,2.90695]